fUSD/lending_fUSD_20240329
["ID","MTS","AMOUNT","RATE_DAILY","PERIOD"]
[320910968,1711703381820,197.87808422,0.00029549,2]
[320910969,1711703386901,169.76500305,5e-05,2]
[320910971,1711703425474,1169.631826,5e-05,2]
[320910979,1711703431676,-281.46285823,0.00039399,4]
[320910980,1711703431686,-850.0,0.000394,2]
[320910981,1711703431696,-162.84838969,0.00040742,2]
[320910982,1711703431705,-332.0,0.00040743,2]
[320910983,1711703431715,-1008.32737131,0.00040744,2]
[320910984,1711703431724,-238.93967837,0.00040842,4]
[320910985,1711703431733,-306.08333268,0.00040842,4]
[320910986,1711703431743,-330.3679996,0.00040843,4]
[320910988,1711703431753,-3450.60320175,0.00040844,2]
[320910989,1711703431763,-3099.4690404,0.00040844,5]
[320910990,1711703431775,-977.1899298,0.00040844,5]
[320910991,1711703431786,-2527.52942476,0.00040844,5]
[320910993,1711703431813,-60191.04155512,0.00040844,5]
[320910996,1711703431830,-699.005,0.00040844,3]
[320910997,1711703431845,-159.60716564,0.00040844,5]
[320910998,1711703431857,-162.84838963,0.00041747,2]
[320910999,1711703431872,-162.84838963,0.00042752,2]
[320911000,1711703431887,-499.99,0.00042752,2]
[320911001,1711703431903,-162.84838963,0.00043756,2]
[320911002,1711703431917,-267.40687999,0.0004399,10]
[320911003,1711703431930,-332.18,0.00044443,2]
[320911004,1711703431943,-1008.3273713,0.00044603,2]
[320911005,1711703431956,-162.84838963,0.00044761,2]
[320911006,1711703431969,-328.2145839,0.00045,30]
[320911007,1711703431983,-823.08950396,0.00045589,4]
[320911008,1711703431998,-650.86,0.00045589,2]
[320911009,1711703432011,-162.84838963,0.00045766,2]
[320911010,1711703432022,-168.55,0.00045822,15]
[320911011,1711703432039,-176.757458,0.0004626,30]
[320911012,1711703432056,-8700.7,0.00046667,2]
[320911013,1711703432072,-823.86,0.00046683,2]
[320911014,1711703432087,-1000.0,0.00046695,2]
[320911015,1711703432101,-250.0,0.00046698,112]
[320911016,1711703432115,-332.18,0.00046706,2]
[320911017,1711703432130,-386.87,0.00046736,2]
[320911018,1711703432145,-193.36,0.00046759,120]
[320911019,1711703432160,-162.84838963,0.00046771,2]
[320911022,1711703432173,-3399.0,0.000471,2]
[320911023,1711703432183,-2235.24,0.00047429,120]
[320911024,1711703432195,-162.84838963,0.00047775,2]
[320911025,1711703432209,-234.70579322,0.00048,120]
[320911026,1711703432222,-500.0,0.00048,5]
[320911027,1711703432236,-553.37005529,0.00048,2]
[320911028,1711703432249,-159.59,0.00048034,2]
[320911029,1711703432261,-217.0,0.00048059,2]
[320911031,1711703432272,-23803.54,0.00048089,5]
[320911033,1711703432296,-500.0,0.000482,3]
[320911034,1711703432310,-355.05027,0.0004839,42]
[320911035,1711703432334,-157.032917,0.00048448,98]
[320911036,1711703432355,-150.032917,0.00048448,97]
[320911037,1711703432373,-150.032917,0.00048448,96]
[320911038,1711703432389,-150.032917,0.00048448,95]
[320911039,1711703432405,-1008.3273713,0.00048462,2]
[320911040,1711703432421,-1459.01656611,0.00048473,2]
[320911041,1711703432436,-500.0,0.000485,3]
[320911042,1711703432451,-156.79,0.00048533,2]
[320911043,1711703432466,-6941.83187499,0.00048543,5]
[320911044,1711703432485,-315.74470428,0.00048543,5]
[320911045,1711703432689,-3533.15728202,0.00048543,5]
[320911046,1711703432706,-308.5,0.00048543,5]
[320911047,1711703432724,-623.27649731,0.00048543,5]
[320911055,1711703437729,-32976.78684491,0.00048543,5]
[320911057,1711703438223,-6629.93846098,0.00048543,5]
[320911058,1711703438235,-140032.88156355,0.00048543,5]
[320911061,1711703438293,-6998.7,0.00048543,5]
[320911066,1711703439320,234.65276203,5e-05,2]
[320911078,1711703439675,-1051.44930512,0.00048543,5]
[320911079,1711703441820,287.12453816,5e-05,2]
[320911092,1711703442898,-12894.90346684,0.00048543,5]
[320911093,1711703442909,-168.55,0.00048562,15]
[320911094,1711703442919,-176.757458,0.00048573,30]
[320911095,1711703442928,-2000.0,0.00048636,5]
[320911096,1711703442938,-2000.0,0.00048636,5]
[320911097,1711703442948,-355.05028,0.0004865,43]
[320911098,1711703442957,-16073.2379,0.0004868,2]
[320911099,1711703442967,-1215.70113379,0.0004868,2]
[320911100,1711703442977,-1000.0,0.0004868,2]
[320911101,1711703442986,-1908.2011,0.0004868,2]
[320911102,1711703442995,-168.85835234,0.0004868,2]
[320911103,1711703443005,-178.46602479,0.000487,30]
[320911104,1711703443014,-150.0,0.00048713,2]
[320911105,1711703443025,-150.0,0.00048713,2]
[320911106,1711703443034,-150.14,0.0004877,120]
[320911107,1711703443043,-148112.01054042,0.00048775,2]
[320911108,1711703443070,-950.0,0.00048775,2]
[320911109,1711703443096,-1725.46242003,0.00048775,2]
[320911110,1711703443113,-1797.51441499,0.00048775,2]
[320911111,1711703443232,-562.07763881,0.00048775,2]
[320911112,1711703443244,-3516.50328269,0.00048775,2]
[320911113,1711703443256,-2178.24926731,0.00048775,2]
[320911114,1711703443269,-1948.18110568,0.00048775,2]
[320911115,1711703443281,-8221.84250439,0.00048775,2]
[320911116,1711703443295,-2812.04615429,0.00048775,2]
[320911117,1711703443308,-19362.15569601,0.00048775,2]
[320911118,1711703443322,-441.85104758,0.00048775,2]
[320911141,1711703443572,952.61212676,5e-05,2]
[320911251,1711703445741,-14025.02205601,0.00048775,2]
[320911252,1711703445960,-252663.12460159,0.00048775,2]
[320911253,1711703445975,-63190.01544,0.00048775,2]
[320911254,1711703445988,-218409.04568057,0.00048775,2]
[320911255,1711703445998,-24690.2526,0.00048779,2]
[320911256,1711703446009,-3390.7799,0.0004878,2]
[320911257,1711703446021,-11245.20181943,0.0004878,2]
[320911258,1711703446035,-92262.9465,0.0004878,2]
[320911259,1711703446049,-80555.1074592,0.0004878,2]
[320911260,1711703446061,-12897.91352533,0.0004878,2]
[320911261,1711703446094,-22855.05389604,0.0004878,2]
[320911262,1711703446104,-392.1619,0.0004878,2]
[320911263,1711703446113,-1000.0,0.0004878,2]
[320911264,1711703446123,-342.53695721,0.0004878,25]
[320911265,1711703446135,-585.06328273,0.0004878,25]
[320911266,1711703446144,-5000.0,0.0004878,2]
[320911267,1711703446154,-162.84838963,0.0004878,2]
[320911268,1711703446164,-3695.16002994,0.0004878,2]
[320911269,1711703446173,-198.69652108,0.0004878,2]
[320911270,1711703446183,-607.15627964,0.0004878,44]
[320911271,1711703446192,-2000.0,0.000488,90]
[320911272,1711703446201,-1459.0165661,0.00048832,2]
[320911273,1711703446211,-156.79,0.00048863,2]
[320911274,1711703446221,-150.14,0.00048863,120]
[320911275,1711703446230,-156.79,0.0004887,2]
[320911276,1711703446240,-150.14,0.0004887,120]
[320911277,1711703446250,-150.14,0.0004887,120]
[320911278,1711703446260,-150.14,0.0004887,120]
[320911279,1711703446269,-156.79,0.0004887,2]
[320911281,1711703446278,-156.79,0.0004887,2]
[320911283,1711703446288,-150.14,0.0004887,120]
[320911285,1711703446297,-150.14,0.0004887,120]
[320911287,1711703446306,-150.14,0.0004887,120]
[320911289,1711703446316,-150.14,0.0004887,120]
[320911291,1711703446325,-150.14,0.0004887,120]
[320911293,1711703446334,-150.14,0.0004887,120]
[320911294,1711703446343,-150.14,0.0004887,120]
[320911295,1711703446352,-150.14,0.0004887,120]
[320911296,1711703446362,-150.14,0.0004887,120]
[320911297,1711703446372,-150.14,0.0004887,120]
[320911298,1711703446381,-150.14,0.0004887,120]
[320911299,1711703446390,-150.14,0.0004887,120]
[320911300,1711703446400,-150.14,0.0004887,120]
[320911301,1711703446410,-150.14,0.0004887,120]
[320911302,1711703446419,-150.14,0.0004887,120]
[320911303,1711703446429,-7223.68571485,0.00048871,2]
[320911304,1711703446445,-260.60630302,0.00048871,2]
[320911307,1711703455836,287.12453816,5e-05,2]
[320911316,1711704046694,-191.74101816,0.00036111,4]
[320911317,1711704046724,-700.4517982,0.00036608,4]
[320911318,1711704046753,-1297.56248496,0.00036609,2]
[320911319,1711704046784,-1054.25515529,0.00036706,4]
[320911320,1711704046812,-281.46285823,0.00036707,4]
[320911321,1711704046840,-403.41029846,0.00036708,4]
[320911322,1711704046867,-192.42776279,0.00036709,4]
[320911323,1711704046896,-5878.68862391,0.00036709,4]
[320911324,1711704067897,-514.514337,0.0003593,2]
[320911325,1711704067928,-192.42776279,0.0003611,4]
[320911326,1711704067958,-1535.99665286,0.00036709,4]
[320911327,1711704096277,7757.06124735,0.00036709,4]
[320911363,1711704496700,-352.57290103,0.00036395,4]
[320911364,1711704496728,-17149.23611728,0.00036396,4]
[320911365,1711704496757,-5891.25427059,0.00036397,4]
[320911366,1711704496785,-1666.8918526,0.00036398,4]
[320911367,1711704496812,-7312.02736745,0.00036399,2]
[320911368,1711704496842,-150.0,0.00036497,2]
[320911369,1711704496870,-300.0,0.00036497,3]
[320911370,1711704496899,-15556.60619015,0.00036603,4]
[320911371,1711704496930,-218.41416745,0.00036605,2]
[320911372,1711704496959,-465.11530392,0.00036706,4]
[320911373,1711704496987,-413.08309748,0.00036706,4]
[320911374,1711704497015,-412.87115323,0.00036706,4]
[320911375,1711704497043,-499.99,0.00036706,2]
[320911376,1711704497070,-191.64,0.00036706,15]
[320911377,1711704497097,-4137.06,0.00036706,2]
[320911378,1711704497124,-685.31,0.00036706,2]
[320911379,1711704497151,-2943.61,0.00036706,20]
[320911380,1711704497179,-947.24240402,0.00036708,4]
[320911381,1711704497207,-18558.61091239,0.00036709,4]
[320911382,1711704517107,152.23,0.00036442,2]
[320911383,1711704527751,350.0,0.00029,3]
[320911384,1711704528162,2510.97016994,0.00036709,4]
[320911385,1711704528858,400.0,0.00031,3]
[320911386,1711704529941,450.0,0.00033,3]
[320911387,1711704531025,500.0,0.00035,3]
[320911388,1711704533583,550.0,0.00037,3]
[320911426,1711704631963,-150.99,0.00037098,2]
[320911427,1711704631974,-149.01,0.00038116,30]
[320911428,1711704631986,-164.13427323,0.00038116,30]
[320911429,1711704631996,-600.0,0.00039,3]
[320911430,1711704632006,-150.8675,0.00040022,2]
[320911431,1711704632019,-162.66306296,0.00040022,2]
[320911432,1711704632029,-911.27049372,0.00040114,2]
[320911433,1711704632038,-150.0,0.00040121,5]
[320911434,1711704632048,-155.0,0.00040122,4]
[320911435,1711704632058,-163.56941415,0.00040122,4]
[320911436,1711704632069,-705.17999641,0.00040122,30]
[320911437,1711704632080,-325.44996838,0.00040122,4]
[320911438,1711704632090,-854.93307856,0.00040122,5]
[320911439,1711704632099,-1783.49366039,0.00040122,4]
[320911440,1711704632109,-155.82874118,0.00040122,4]
[320911441,1711704632118,-813.06012676,0.00040122,4]
[320911442,1711704632128,-383.58492223,0.00040122,4]
[320911443,1711704632142,-1212.24000026,0.00040122,4]
[320911444,1711704632153,-701.89621518,0.00040122,4]
[320911445,1711704632188,-482.31857907,0.00040122,4]
[320911446,1711704632200,-116.22654262,0.00040122,4]
[320911447,1711704632211,-159.51648876,0.00040122,4]
[320911448,1711704632225,-12.44472267,0.00040122,4]
[320911449,1711704632235,-155.0,0.00040122,4]
[320911450,1711704632245,-445.55633578,0.00040122,4]
[320911451,1711704632254,-200.89884155,0.00040123,4]
[320911452,1711704632287,-806.15843851,0.00040123,4]
[320911453,1711704632299,-298.78959945,0.00040123,4]
[320911454,1711704632312,-472.52936896,0.00040123,4]
[320911457,1711704632333,-1057.226919,0.00040123,4]
[320911459,1711704632345,-5531.25590129,0.00040123,4]
[320911461,1711704632354,-155.000001,0.00040124,4]
[320911463,1711704632364,-6742.75532217,0.00040124,4]
[320911466,1711704632373,-485.65085822,0.00040124,4]
[320911468,1711704632383,-5944.90610904,0.00040124,4]
[320911471,1711704632392,-2166.95825015,0.00040124,4]
[320911474,1711704632401,-2350.06073836,0.00040124,4]
[320911477,1711704632411,-427.15802442,0.00040124,4]
[320911480,1711704632421,-1058.14952431,0.00040124,4]
[320911483,1711704632430,-172.69101799,0.00040124,2]
[320911486,1711704632439,-155.0,0.00040124,4]
[320911489,1711704632449,-155.46079901,0.00040124,4]
[320911492,1711704632458,-693.53630976,0.00040124,4]
[320911495,1711704632469,-514.12640421,0.00040124,4]
[320911498,1711704632478,-281.46285826,0.00040124,4]
[320911500,1711704632488,-2690.92186609,0.00040124,4]
[320911503,1711704632505,-1916.30494207,0.00040124,4]
[320911505,1711704632515,-1235.44561692,0.00040124,4]
[320911507,1711704632524,-1638.5518,0.00040124,4]
[320911509,1711704632533,-43.44764101,0.00040125,4]
[320911734,1711704638032,-763.11928009,0.00040125,4]
[320911735,1711704638045,-218.90140069,0.00040126,4]
[320911736,1711704638077,-1715.40588635,0.00040126,4]
[320911767,1711704638512,-701.32009125,0.00040126,4]
[320911770,1711704638525,-924.82999995,0.00040126,4]
[320911815,1711704639944,-35000.0,0.00040126,4]
[320911816,1711704640033,-302.7157383,0.00040126,4]
[320911817,1711704640124,-2451.09565579,0.00040126,4]
[320911818,1711704640134,-398.3515762,0.0004033,4]
[320911819,1711704640144,-150.55276801,0.0004064,2]
[320911857,1711704643054,-1504.74963199,0.0004064,2]
[320911858,1711704643064,-564.62313333,0.0004074,4]
[320911859,1711704643073,-650.0,0.00041,3]
[320911860,1711704643083,-250.0,0.00041296,112]
[320911861,1711704643092,-173.6,0.00041337,120]
[320911862,1711704643102,-200.0,0.00041364,2]
[320911863,1711704643111,-162.66306294,0.00042212,2]
[320911864,1711704643120,-1102.35373147,0.00042823,2]
[320911865,1711704643132,-64.85952141,0.00042823,2]
[320911866,1711704643142,-700.0,0.00043,3]
[320911867,1711704643151,-201.055791,0.00043288,14]
[320911868,1711704643161,-397.79,0.00043575,2]
[320911869,1711704643170,-201.055791,0.0004411,14]
[320911870,1711704643180,-1167.21325288,0.00044119,2]
[320911871,1711704643190,-210.0,0.00044133,5]
[320911872,1711704643199,-123.33943416,0.00044135,2]
[320911873,1711704643242,-26.66056584,0.00044135,2]
[320911874,1711704643252,-169.84,0.00044222,15]
[320911875,1711704643261,-200.0,0.00044488,2]
[320911876,1711704643270,-250.0,0.00044508,2]
[320911877,1711704643280,-1094.13102033,0.00044906,2]
[320911878,1711704643289,-201.055791,0.00044932,14]
[320911879,1711704643298,-750.0,0.00045,3]
[320911880,1711704643307,-2927.41065642,0.00045,30]
[320911881,1711704643320,-6109.10064136,0.00045,30]
[320911882,1711704643331,-3919.19663794,0.00045,30]
[320911883,1711704643376,-1869.17256744,0.00045,30]
[320911884,1711704643448,-125287.22203517,0.00045,30]
[320911885,1711704643457,-184.81,0.00045006,2]
[320911886,1711704643467,-250.0,0.00045159,120]
[320911887,1711704643476,-4747.59,0.00045274,2]
[320911888,1711704643486,-170.09,0.00045343,2]
[320911889,1711704643496,-1167.21325288,0.00045416,2]
[320911890,1711704643505,-213.4110049,0.00045421,2]
[320911891,1711704643515,-213.4110049,0.00045421,2]
[320911892,1711704643524,-1381.38,0.00045468,2]
[320911893,1711704643535,-213.4110049,0.000455,2]
[320911895,1711704643544,-2415.49,0.0004551,2]
[320911897,1711704643554,-200.0,0.00045669,2]
[320911899,1711704643563,-1094.13102033,0.00045683,2]
[320911901,1711704643573,-163.75,0.00045694,120]
[320911903,1711704643582,-201.055791,0.00045753,14]
[320911904,1711704643592,-800.0,0.00045754,2]
[320911907,1711704643601,-500.0,0.00045763,2]
[320911909,1711704643611,-213.4110049,0.00045775,2]
[320911910,1711704643620,-447.22,0.00045785,2]
[320911912,1711704643629,-397.79,0.00045839,2]
[320911914,1711704643638,-159.2686262,0.00046344,30]
[320911916,1711704643647,-168.63839945,0.00046406,30]
[320911918,1711704643657,-727.38,0.00046451,2]
[320911920,1711704643666,-1094.13102033,0.0004646,2]
[320911922,1711704643675,-200.0,0.00046535,2]
[320911924,1711704643685,-201.055791,0.00046575,14]
[320911926,1711704643694,-213.4110049,0.00046636,2]
[320911927,1711704643906,-874.49,0.00046646,120]
[320911928,1711704643915,-1167.21325288,0.00046712,2]
[320911929,1711704643925,-185.544,0.00046935,120]
[320911930,1711704643935,-185.544,0.00046935,120]
[320911931,1711704643948,-169.84,0.00046962,15]
[320911932,1711704643957,-213.4110049,0.0004699,2]
[320911933,1711704643966,-1094.13102033,0.00047237,2]
[320911934,1711704643977,-201.055791,0.00047397,14]
[320911935,1711704643989,-1862.7,0.00047853,120]
[320911936,1711704643999,-156.19621849,0.00047892,4]
[320911937,1711704644009,-213.4110049,0.0004799,2]
[320911938,1711704644018,-150.0,0.00048,2]
[320911939,1711704644028,-1167.21325288,0.00048009,2]
[320911940,1711704644038,-1094.13102033,0.00048014,2]
[320911941,1711704644047,-397.79,0.00048103,2]
[320911942,1711704644056,-201.055791,0.00048219,14]
[320911943,1711704644065,-1120.77280022,0.00048434,2]
[320911944,1711704644074,-511.0,0.00048466,30]
[320911945,1711704644083,-213.4110049,0.0004849,2]
[320911946,1711704644092,-2631.63917301,0.000485,7]
[320911947,1711704644101,-293.0,0.00048546,5]
[320911948,1711704644110,-1120.77280022,0.00048574,2]
[320911949,1711704644119,-180.0,0.00048617,120]
[320911950,1711704644128,-213.4110049,0.00048626,2]
[320911951,1711704644136,-2000.0,0.00048636,5]
[320911952,1711704644143,-150.0,0.00048647,7]
[320911953,1711704644152,-150.0,0.00048649,7]
[320911954,1711704644161,-213.4110049,0.0004865,2]
[320911955,1711704644170,-1491.2938486,0.00048677,2]
[320911956,1711704644179,-150.0,0.00048719,7]
[320911957,1711704644188,-150.0,0.00048737,7]
[320911958,1711704644197,-511.0,0.00048739,30]
[320911959,1711704644206,-213.4110049,0.00048751,2]
[320911960,1711704644215,-213.4110049,0.00048764,2]
[320911961,1711704644224,-213.4110049,0.00048764,2]
[320911962,1711704644235,-213.4110049,0.0004877,2]
[320911963,1711704644244,-213.4110049,0.0004877,2]
[320911964,1711704644254,-500.0,0.00048771,2]
[320911965,1711704644263,-327.70267186,0.00048774,2]
[320911966,1711704644273,-1231.7992,0.0004878,2]
[320911967,1711704644282,-850.30021989,0.0004878,25]
[320911968,1711704644292,-5000.0,0.0004878,2]
[320911969,1711704644301,-213.4110049,0.00048781,2]
[320911970,1711704644310,-198.69652107,0.00048791,2]
[320911971,1711704644319,-485.72502368,0.00048791,44]
[320911972,1711704644328,-1094.13102033,0.00048792,2]
[320911973,1711704644337,-479.0,0.000488,37]
[320911974,1711704644347,-490.0,0.000488,26]
[320911975,1711704644357,-1114.64007547,0.00048827,4]
[320911976,1711704644367,-213.4110049,0.00048835,2]
[320911977,1711704644376,-150.0,0.00048836,7]
[320911978,1711704644385,-424.72957603,0.00048845,4]
[320911979,1711704644395,-157.032918,0.00048848,103]
[320911980,1711704644405,-157.032918,0.00048848,102]
[320911981,1711704644414,-157.032918,0.00048848,101]
[320911982,1711704644423,-157.032918,0.00048848,100]
[320911983,1711704644433,-157.032918,0.00048848,99]
[320911984,1711704644442,-157.032918,0.00048848,98]
[320911985,1711704644452,-213.4110049,0.00048851,2]
[320911986,1711704644461,-213.4110049,0.00048851,2]
[320911987,1711704644470,-213.4110049,0.00048859,2]
[320911988,1711704644480,-213.4110049,0.00048859,2]
[320911989,1711704644490,-213.4110049,0.00048859,2]
[320911990,1711704644499,-213.4110049,0.00048859,2]
[320911991,1711704644509,-213.4110049,0.0004886,2]
[320911992,1711704644518,-213.4110049,0.0004886,2]
[320911993,1711704644526,-213.4110049,0.0004886,2]
[320911994,1711704644536,-213.4110049,0.0004886,2]
[320911995,1711704644545,-213.4110049,0.00048861,2]
[320911996,1711704644555,-213.4110049,0.00048861,2]
[320911997,1711704644564,-213.4110049,0.00048861,2]
[320911998,1711704644574,-213.4110049,0.00048861,2]
[320911999,1711704644584,-213.4110049,0.00048861,2]
[320912000,1711704644593,-150.15,0.00048862,120]
[320912001,1711704644602,-263.54100327,0.00048869,4]
[320912002,1711704644612,-3363.69415921,0.00048869,4]
[320912003,1711704644622,-161.42744966,0.00048869,4]
[320912004,1711704644631,-400.0,0.00048869,2]
[320912005,1711704644640,-849.35615532,0.00048869,2]
[320912006,1711704644652,-216.78100935,0.00048869,4]
[320912007,1711704644665,-166.0839378,0.00048869,4]
[320912008,1711704644674,-205.59226142,0.00048869,4]
[320912009,1711704644683,-155.0,0.00048869,4]
[320912010,1711704644692,-175.14145843,0.00048869,4]
[320912011,1711704644702,-406.19888067,0.00048869,4]
[320912012,1711704644711,-4701.47107248,0.00048869,4]
[320912013,1711704644721,-155.55787941,0.00048869,4]
[320912014,1711704644731,-155.93236491,0.00048869,4]
[320912015,1711704644741,-277.47847021,0.00048869,4]
[320912016,1711704644750,-150.15,0.0004887,120]
[320912017,1711704644760,-4820.41346061,0.0004887,4]
[320912018,1711704644770,-3066.08279134,0.0004887,4]
[320912019,1711704644779,-216.547343,0.0004887,90]
[320912020,1711704644789,-200.0,0.0004887,90]
[320912021,1711704644798,-200.0,0.0004887,90]
[320912022,1711704644808,-150.15,0.0004887,120]
[320912023,1711704644817,-150.15,0.0004887,120]
[320912024,1711704644826,-150.15,0.0004887,120]
[320912025,1711704644835,-150.15,0.0004887,120]
[320912026,1711704644844,-150.15,0.0004887,120]
[320912027,1711704644854,-150.15,0.0004887,120]
[320912028,1711704644863,-150.15,0.0004887,120]
[320912029,1711704644873,-11530.70798213,0.00048871,2]
[320912030,1711704644883,-3681.18009933,0.00048871,4]
[320912031,1711704644893,-287.04631503,0.00048871,4]
[320912032,1711704644902,-758.08220157,0.00048871,4]
[320912033,1711704644912,-567.68168731,0.00048871,7]
[320912034,1711704644921,-65083.40305753,0.00048871,2]
[320912035,1711704644931,-1346.05691834,0.00048871,90]
[320912036,1711704644941,-2000.0,0.00048871,7]
[320912037,1711704644950,-200.0,0.00048871,7]
[320912038,1711704644959,-236.70018,0.00048871,44]
[320912039,1711704644969,-19015.0,0.00048872,2]
[320912040,1711704644982,-4495.59,0.00048872,3]
[320912041,1711704644991,-4495.59,0.00048872,3]
[320912042,1711704645001,-4495.59,0.00048872,3]
[320912043,1711704645011,-4495.59,0.00048872,3]
[320912044,1711704645021,-4495.59,0.00048872,3]
[320912045,1711704645030,-4495.59,0.00048872,3]
[320912046,1711704645040,-4495.59,0.00048872,3]
[320912047,1711704645049,-4495.59,0.00048872,3]
[320912048,1711704645059,-4495.59,0.00048872,3]
[320912049,1711704645069,-4495.59,0.00048872,3]
[320912050,1711704645079,-4495.59,0.00048872,3]
[320912051,1711704645088,-4495.59,0.00048872,3]
[320912052,1711704645098,-4495.59,0.00048872,3]
[320912053,1711704645107,-4495.59,0.00048872,3]
[320912054,1711704645117,-4495.59,0.00048872,3]
[320912055,1711704645128,-4495.59,0.00048872,3]
[320912056,1711704645137,-4495.59,0.00048872,3]
[320912057,1711704645146,-4495.59,0.00048872,3]
[320912058,1711704645155,-4495.59,0.00048872,3]
[320912059,1711704645165,-4495.59,0.00048872,3]
[320912060,1711704645176,-4495.59,0.00048872,3]
[320912061,1711704645186,-4495.59,0.00048872,3]
[320912062,1711704645195,-4495.59,0.00048872,3]
[320912063,1711704645206,-4495.60178246,0.00048872,3]
[320912064,1711704645217,-19015.0,0.00048873,2]
[320912065,1711704645228,-19015.72,0.00048874,2]
[320912066,1711704645239,-227.78444528,0.00048877,30]
[320912067,1711704645248,-150.0,0.00048877,30]
[320912068,1711704645257,-150.68854939,0.00048877,30]
[320912069,1711704645267,-150.0,0.00048877,30]
[320912070,1711704645276,-150.91622145,0.00048877,30]
[320912071,1711704645285,-150.0,0.00048877,30]
[320912072,1711704645294,-150.84293982,0.00048877,30]
[320912073,1711704645304,-150.0,0.00048877,30]
[320912074,1711704645313,-2894.63395338,0.00048877,2]
[320912075,1711704645322,-4692.81880749,0.00048879,4]
[320912076,1711704645331,-965.09189142,0.00048879,4]
[320912077,1711704645341,-1000.0,0.00048879,120]
[320912078,1711704645350,-341.74650683,0.00048879,60]
[320912079,1711704645359,-490.91341614,0.00048879,2]
[320912080,1711704645370,-586.04906156,0.00048879,120]
[320912081,1711704645381,-5000.0,0.00048879,4]
[320912082,1711704645390,-113446.37557567,0.0004888,21]
[320912083,1711704645407,-2161.46823477,0.0004888,21]
[320912084,1711704645438,-0.00461292,0.0004888,21]
[320912109,1711704646116,-665.62779722,0.00040125,4]
[320912111,1711704646127,-2837.3973259,0.0004888,21]
[320912112,1711704646156,-16287.19429917,0.0004888,21]
[320912113,1711704646170,-6269.75312845,0.0004888,21]
[320912114,1711704646184,-7250.37670602,0.0004888,21]
[320912115,1711704646196,-518003.53355895,0.0004888,21]
[320912116,1711704646205,-206.0,0.0004888,10]
[320912117,1711704646215,-189132.78013005,0.0004888,2]
[320912118,1711704646224,-24151.54465591,0.0004888,4]
[320912119,1711704646236,-228277.33493855,0.0004888,2]
[320912120,1711704646248,-2390.83654837,0.0004888,2]
[320912121,1711704646268,-78709.0,0.0004888,2]
[320912122,1711704646281,-367.21670936,0.0004888,2]
[320912123,1711704646303,-62528.50870942,0.0004888,2]
[320912124,1711704646674,-143826.24250909,0.0004888,2]
[320912125,1711704646684,-1051.22069949,0.0004888,120]
[320912126,1711704646694,-7471.96201824,0.0004888,2]
[320912293,1711704674865,225.63948404,0.00024,2]
[320912294,1711704747118,478.7989875,0.00040903,120]
[320912295,1711704751875,3104.38244648,0.00040903,30]
[320912296,1711704766800,1129.52712583,0.00024,2]
[320912297,1711704773934,291.2409014,0.00024,2]
[320912298,1711704780503,2979.93858727,0.00024,2]
[320912300,1711705318222,3513.61339712,0.00024,2]
[320912301,1711705390932,218.94470198,0.00027,2]
[320912302,1711705400569,2654.58956233,0.00024,2]
[320912303,1711705495993,250.0,0.00033,3]
[320912304,1711705497133,300.0,0.00035,3]
[320912305,1711705506523,150.0,0.00034548,10]
[320912319,1711705759112,-292.8,0.00036452,2]
[320912320,1711705759134,-122.216034,0.00037,3]
[320912331,1711705833356,-227.783966,0.00037,3]
[320912332,1711705833366,-583.0,0.000403,2]
[320912333,1711705833377,-156.0297694,0.00042821,120]
[320912334,1711705833390,-850.0986575,0.00042821,120]
[320912335,1711705833400,-269.31706662,0.00042822,4]
[320912336,1711705833410,-150.0,0.00043067,5]
[320912337,1711705833419,-464.0,0.00043067,3]
[320912338,1711705833428,-150.99,0.00043067,2]
[320912339,1711705833437,-1600.64427588,0.00043068,2]
[320912340,1711705833450,-413.05455694,0.00043068,2]
[320912341,1711705833479,-521.45821047,0.00043068,2]
[320912342,1711705833491,-932.24484287,0.00043068,2]